bitfinex-derivatives/quotes_BTCF0:USTF0_20250127
["timestamp","ask_amount","ask_price","bid_price","bid_amount"]
[1738020687639,0.34304949,101820.0,101810.0,0.29104441]
[1738020689730,0.40146765,101820.0,101810.0,0.29104441]
[1738020690336,0.40146765,101820.0,101810.0,0.65184441]
[1738020690532,0.20501665,101820.0,101810.0,0.65184441]
[1738020691744,0.20501665,101820.0,101810.0,0.66072106]
[1738020691745,0.40146765,101820.0,101810.0,0.66072106]
[1738020692145,0.40146765,101820.0,101810.0,0.29992106]
[1738020692545,0.40146765,101820.0,101810.0,0.29104441]
[1738020692944,0.40146765,101820.0,101810.0,0.198471]
[1738020693948,0.64511528,101820.0,101810.0,0.002]
[1738020695140,0.64511528,101820.0,101810.0,0.198471]
[1738020697343,0.76697678,101820.0,101810.0,0.002]
[1738020698447,0.66309919,101820.0,101800.0,0.00014701]
[1738020698646,0.69384441,101810.0,101800.0,0.00014701]
[1738020699041,0.557271,101810.0,101800.0,0.28921042]
[1738020699752,0.557271,101810.0,101800.0,0.19763701]
[1738020699949,0.557271,101810.0,101800.0,0.19863701]
[1738020701044,0.70386949,101810.0,101800.0,0.19863701]
[1738020701840,0.34306949,101810.0,101800.0,0.19863701]
[1738020702047,0.34306949,101810.0,101800.0,0.29121042]
[1738020702751,0.34306949,101810.0,101800.0,0.19863701]
[1738020703147,0.34306949,101810.0,101800.0,0.29121042]
[1738020703452,0.34306949,101810.0,101800.0,0.65201042]
[1738020703651,0.34306949,101810.0,101800.0,1.79121042]
[1738020704049,0.51972519,101810.0,101800.0,1.79121042]
[1738020704844,0.51972519,101810.0,101800.0,0.19863701]
[1738020706950,0.51972519,101810.0,101800.0,0.65201042]
[1738020707453,0.3731267,101810.0,101800.0,0.65201042]
[1738020708049,0.1766557,101810.0,101800.0,0.29121042]
[1738020708551,0.1766557,101810.0,101800.0,0.65201042]
[1738020709848,0.1766557,101810.0,101800.0,0.29121042]
[1738020710041,0.19646,101820.0,101800.0,0.45552042]
[1738020710246,0.19646,101820.0,101810.0,0.69544441]
[1738020710953,0.37291252,101820.0,101810.0,2.19544441]
[1738020712055,0.37291252,101820.0,101810.0,2.19644441]
[1738020713060,0.37291252,101820.0,101810.0,2.103871]
[1738020713350,0.73371252,101820.0,101810.0,0.0466]
[1738020713554,0.82628593,101820.0,101810.0,0.001]
[1738020713960,0.82628593,101820.0,101810.0,0.002]
[1738020715145,0.79688167,101820.0,101810.0,0.002]
[1738020715966,0.88945508,101820.0,101810.0,0.002]
[1738020716151,0.196471,101810.0,101800.0,0.17605265]
[1738020716455,0.69344441,101810.0,101800.0,0.17605265]
[1738020717056,0.196509,101790.0,101780.0,0.53727165]
[1738020717255,0.64988241,101790.0,101780.0,0.53727165]
[1738020717856,0.556309,101790.0,101780.0,0.53727165]
[1738020718056,0.555309,101790.0,101780.0,0.53727165]
[1738020718752,0.555309,101790.0,101780.0,0.53827165]
[1738020718953,0.555309,101790.0,101780.0,0.243928]
[1738020720552,0.3608,101790.0,101780.0,0.243928]
[1738020720755,0.00014701,101800.0,101790.0,0.196509]
[1738020720959,0.00014701,101800.0,101790.0,0.74138241]
[1738020722363,1e-08,101800.0,101790.0,2.33495582]
[1738020723471,0.20549073,101800.0,101790.0,2.33495582]
[1738020723772,0.14677909,101810.0,101790.0,3.02104682]
[1738020724067,0.196415,101840.0,101830.0,0.196432]
[1738020724367,0.557215,101840.0,101830.0,0.196432]
[1738020724773,0.557215,101840.0,101830.0,1.696432]
[1738020725558,0.562215,101840.0,101830.0,1.696432]
[1738020725754,0.562215,101840.0,101830.0,1.5]
[1738020725961,0.562215,101840.0,101820.0,0.09272042]
[1738020725962,0.45837341,101840.0,101820.0,0.19659101]
[1738020726159,0.69310541,101830.0,101820.0,0.00014701]
[1738020726365,0.78280541,101830.0,101820.0,0.00014701]
[1738020726865,0.416904,101840.0,101820.0,0.09272042]
[1738020726866,0.564217,101840.0,101820.0,0.09272042]
[1738020727065,0.563217,101840.0,101830.0,0.28900541]
[1738020727272,0.558217,101840.0,101830.0,0.28900541]
[1738020727570,0.560217,101840.0,101830.0,0.28900541]
[1738020727770,0.560217,101840.0,101830.0,0.196432]
[1738020728165,0.196432,101830.0,101820.0,0.19659601]
[1738020728473,0.557232,101830.0,101820.0,0.19659601]
[1738020728673,0.643332,101830.0,101820.0,0.19659601]
[1738020729574,0.005,101840.0,101820.0,0.63869383]
[1738020729765,0.00014701,101850.0,101840.0,0.196413]
[1738020729965,0.00014701,101850.0,101840.0,0.64978641]
[1738020730171,0.36094701,101850.0,101840.0,0.28898641]
[1738020730671,0.00014701,101850.0,101840.0,0.74235982]
[1738020730869,1e-08,101850.0,101840.0,0.64978641]
[1738020731062,1e-08,101850.0,101840.0,0.74235982]
[1738020731264,0.20582091,101870.0,101860.0,0.196374]
[1738020731467,0.20582091,101870.0,101860.0,0.28894741]
[1738020731669,0.20582091,101870.0,101860.0,0.42414741]
[1738020732168,0.20582091,101870.0,101860.0,1.92414741]
[1738020732372,0.22972973,101880.0,101860.0,2.18113341]
[1738020732566,0.22972973,101880.0,101870.0,0.64972841]
[1738020732769,0.22972973,101880.0,101870.0,0.74230182]
[1738020733273,0.10147274,101900.0,101870.0,0.54594682]
[1738020733463,0.10147274,101900.0,101890.0,0.28888941]
[1738020733970,0.65856974,101900.0,101890.0,0.28888941]
[1738020734366,0.46227274,101900.0,101880.0,0.09272042]
[1738020734673,0.196316,101890.0,101880.0,0.28905342]
[1738020735373,0.00014701,101910.0,101900.0,0.196297]
[1738020735577,0.00014701,101910.0,101900.0,1.01047041]
[1738020735873,0.00014701,101910.0,101900.0,1.10303041]
[1738020736467,0.00014701,101910.0,101900.0,1.19560382]
[1738020737469,0.00214701,101910.0,101900.0,2.69560382]
[1738020737977,0.00314701,101910.0,101900.0,2.69560382]
[1738020738573,0.00314701,101910.0,101900.0,2.64913055]
[1738020739370,0.00314701,101910.0,101900.0,1.14913055]
[1738020739879,0.00314701,101910.0,101900.0,2.64913055]
[1738020740177,0.00314701,101910.0,101900.0,0.69577055]
[1738020740665,0.19942501,101910.0,101900.0,0.557097]
[1738020740872,0.196297,101900.0,101890.0,0.3608]
[1738020741066,0.196316,101890.0,101880.0,0.69595256]
[1738020741271,0.19631,101900.0,101880.0,0.69595256]
[1738020742072,0.55711,101900.0,101890.0,0.001]
[1738020742372,0.69578355,101900.0,101890.0,0.001]
[1738020742577,0.73978355,101900.0,101890.0,0.001]
[1738020742871,0.196316,101890.0,101880.0,0.00014701]
[1738020743072,0.557116,101890.0,101880.0,0.00014701]
[1738020743570,0.557116,101890.0,101880.0,0.00114701]
[1738020743970,0.557116,101890.0,101880.0,0.00214701]
[1738020744571,0.557116,101890.0,101880.0,0.00114701]
[1738020744882,0.557116,101890.0,101880.0,0.00214701]
[1738020749584,0.69578955,101890.0,101880.0,0.00214701]
[1738020752884,0.557116,101890.0,101880.0,0.00214701]
[1738020755485,0.69578955,101890.0,101880.0,0.00214701]
[1738020756084,0.049085,101880.0,101840.0,0.3261]
[1738020756389,0.049085,101880.0,101840.0,0.1964]
[1738020756390,0.196394,101850.0,101840.0,0.1964]
[1738020756584,0.196394,101850.0,101840.0,1.6964]
[1738020756884,0.557194,101850.0,101840.0,1.6964]
[1738020757288,0.557194,101850.0,101840.0,1.6984]
[1738020759184,0.557194,101850.0,101840.0,0.1984]
[1738020759381,0.557194,101850.0,101840.0,0.002]
[1738020759586,0.598494,101850.0,101840.0,0.002]
[1738020759786,0.598494,101850.0,101840.0,0.198413]
[1738020760694,0.598494,101850.0,101840.0,0.29101554]
[1738020762890,0.55732701,101860.0,101850.0,0.196394]
[1738020763093,0.36094701,101860.0,101850.0,0.28899654]
[1738020763293,0.36094701,101860.0,101850.0,0.32979654]
[1738020763493,0.36094701,101860.0,101850.0,1.82979654]
[1738020763689,0.00014701,101860.0,101850.0,2.19059654]
[1738020763895,0.00014701,101860.0,101850.0,2.28319908]
[1738020764295,0.00014701,101860.0,101850.0,2.36589908]
[1738020764590,0.00014701,101860.0,101850.0,2.31952355]
[1738020766190,0.00014701,101860.0,101850.0,2.32052355]
[1738020769299,0.19781193,101880.0,101870.0,0.196355]
[1738020769890,0.19781193,101880.0,101870.0,1.696355]
[1738020770893,0.19781193,101880.0,101870.0,1.697355]
[1738020771487,0.00147293,101880.0,101870.0,0.33618455]
[1738020772094,0.19780893,101880.0,101870.0,1.697355]
[1738020773298,0.00147293,101880.0,101870.0,1.697355]
[1738020774893,0.19780893,101880.0,101870.0,1.697355]
[1738020775995,0.00147293,101880.0,101870.0,1.83618455]
[1738020778402,0.00147293,101880.0,101870.0,0.197355]
[1738020778403,0.19780893,101880.0,101870.0,0.197355]
[1738020782209,0.69743848,101880.0,101870.0,0.001]
[1738020782415,0.78193848,101880.0,101870.0,0.001]
[1738020782912,0.64310893,101880.0,101870.0,0.197355]
[1738020785010,0.64310893,101880.0,101870.0,0.001]
[1738020785609,0.64310893,101880.0,101870.0,0.197355]
[1738020786726,0.28230893,101880.0,101870.0,0.197355]
[1738020787616,0.64310893,101880.0,101870.0,0.197355]
[1738020788921,0.64310893,101880.0,101870.0,0.001]
[1738020789219,0.64310893,101880.0,101870.0,0.197355]
[1738020789424,0.64310893,101880.0,101870.0,0.001]
[1738020789826,0.73566772,101880.0,101870.0,0.001]
[1738020791723,0.64310893,101880.0,101870.0,0.001]
[1738020792725,0.7891301,101880.0,101870.0,0.001]
[1738020795934,0.91076592,101880.0,101870.0,0.001]
[1738020796129,1.00332471,101880.0,101870.0,0.001]
[1738020796328,0.196355,101870.0,101860.0,0.00014701]
[1738020796529,0.69341379,101870.0,101860.0,0.00014701]
[1738020797532,0.69641379,101870.0,101860.0,0.00014701]
[1738020797936,0.69641379,101870.0,101860.0,1e-08]
[1738020799542,0.89961408,101870.0,101860.0,1e-08]
[1738020801241,0.909294,101870.0,101860.0,1e-08]
[1738020801938,0.196413,101840.0,101830.0,0.23340689]
[1738020802240,0.196432,101830.0,101820.0,0.29434365]
[1738020802543,0.598332,101830.0,101820.0,0.49079465]
[1738020802737,0.598332,101830.0,101820.0,0.196451]
[1738020803135,0.597332,101830.0,101820.0,0.196451]
[1738020803837,0.597332,101830.0,101820.0,0.197451]
[1738020804233,0.19656901,101840.0,101830.0,0.196432]
[1738020804633,0.19656901,101840.0,101830.0,0.283232]
[1738020804835,0.2891278,101840.0,101830.0,0.283232]
[1738020805333,0.6499278,101840.0,101830.0,0.0868]
[1738020805642,0.6499278,101840.0,101830.0,0.283232]
[1738020805941,0.6499278,101840.0,101830.0,0.241232]
[1738020806941,0.76689356,101840.0,101830.0,0.241232]
[1738020807142,0.67433477,101840.0,101830.0,0.241232]
[1738020807842,0.68360308,101840.0,101830.0,0.241232]
[1738020808042,0.77616187,101840.0,101830.0,0.241232]
[1738020808440,0.77616187,101840.0,101830.0,1.741232]
[1738020809043,0.68360308,101840.0,101830.0,1.741232]
[1738020811044,0.56663732,101840.0,101830.0,1.741232]
[1738020811845,0.20583732,101840.0,101830.0,1.741232]
[1738020813043,0.19656901,101840.0,101830.0,1.83379079]
[1738020813345,0.19656901,101840.0,101830.0,2.19459079]
[1738020814250,0.19656901,101840.0,101830.0,2.102032]
[1738020815543,0.19656901,101840.0,101830.0,2.19459079]
[1738020815950,0.19656901,101840.0,101830.0,2.102032]
[1738020817046,0.19656901,101840.0,101830.0,1.741232]
[1738020817347,0.19656901,101840.0,101830.0,2.102032]
[1738020820937,0.19656901,101840.0,101830.0,1.741232]
[1738020821545,0.19656901,101840.0,101830.0,2.102032]
[1738020825950,0.19656901,101840.0,101830.0,2.11165679]
[1738020826451,0.31353477,101840.0,101830.0,2.11165679]
[1738020828149,0.31353477,101840.0,101830.0,2.102032]
[1738020828344,0.67433477,101840.0,101830.0,0.241232]
[1738020828551,0.31353477,101840.0,101830.0,0.241232]
[1738020828754,0.67433477,101840.0,101830.0,0.241232]
[1738020829054,0.67433477,101840.0,101830.0,0.197432]
[1738020829457,0.31353477,101840.0,101830.0,0.197432]
[1738020831346,0.34277621,101840.0,101830.0,0.197432]
[1738020833852,0.70357621,101840.0,101830.0,0.197432]
[1738020835551,0.87902485,101840.0,101830.0,0.197432]
[1738020841750,0.32180285,101840.0,101830.0,0.65079079]
[1738020842355,0.32180285,101840.0,101830.0,2.15079079]
[1738020842555,0.17559565,101840.0,101830.0,2.15079079]
[1738020842755,0.37200865,101840.0,101830.0,2.058232]
[1738020843063,0.37200865,101840.0,101830.0,1.697432]
[1738020843448,0.82536744,101840.0,101830.0,0.001]
[1738020846354,0.72686134,101840.0,101830.0,0.001]
[1738020846959,0.63430255,101840.0,101830.0,0.197432]
[1738020847165,0.63430255,101840.0,101830.0,0.001]
[1738020847663,0.72686134,101840.0,101830.0,0.001]
[1738020848356,0.07708955,101840.0,101830.0,0.28999079]
[1738020848662,0.07708955,101840.0,101830.0,0.41119079]
[1738020849763,0.27350255,101840.0,101830.0,0.41119079]
[1738020850260,0.19656001,101840.0,101830.0,0.41119079]
[1738020852458,0.19656001,101840.0,101830.0,0.277032]
[1738020852764,0.6499188,101840.0,101830.0,0.001]
[1738020853558,0.91399147,101840.0,101830.0,0.001]
[1738020854557,0.71757847,101840.0,101820.0,0.17670019]
[1738020854761,0.73279079,101830.0,101820.0,0.17670019]
[1738020856660,0.196451,101820.0,101810.0,0.19661401]
[1738020856862,0.557251,101820.0,101810.0,0.19661401]
[1738020857061,0.556251,101820.0,101810.0,0.19661401]
[1738020857458,0.195451,101820.0,101810.0,0.2891728]
[1738020857655,0.195451,101820.0,101810.0,0.6499728]
[1738020857861,0.195451,101820.0,101810.0,0.2891728]
[1738020858061,0.46059245,101830.0,101820.0,0.196451]
[1738020858262,0.37349245,101830.0,101820.0,0.28900979]
[1738020858465,0.37349245,101830.0,101820.0,0.236651]
[1738020858670,0.37349245,101830.0,101820.0,1.736651]
[1738020859073,0.82685124,101830.0,101820.0,1.696451]
[1738020859372,0.46505124,101830.0,101820.0,1.696451]
[1738020859967,0.55284137,101830.0,101820.0,1.696451]
[1738020860170,0.91464137,101830.0,101820.0,1.696451]
[1738020860371,0.91764137,101830.0,101820.0,1.696451]
[1738020860869,0.55684137,101830.0,101820.0,1.696451]
[1738020861271,0.91764137,101830.0,101820.0,1.696451]
[1738020861869,0.82508258,101830.0,101820.0,1.696451]
[1738020862468,0.82508258,101830.0,101820.0,0.196451]
[1738020862672,0.83464045,101830.0,101820.0,0.196451]
[1738020862871,0.71737886,101830.0,101820.0,0.196451]
[1738020863071,0.71737886,101830.0,101820.0,1.696451]
[1738020864275,0.71737886,101830.0,101820.0,0.196451]
[1738020866575,0.35657886,101830.0,101820.0,0.196451]
[1738020867470,0.71737886,101830.0,101820.0,0.196451]
[1738020869376,0.75707886,101830.0,101820.0,0.196451]
[1738020869674,0.39627886,101830.0,101820.0,0.28900979]
[1738020869865,0.16013486,101830.0,101820.0,0.64980979]
[1738020870065,0.35656686,101830.0,101820.0,0.69060979]
[1738020870275,0.35656686,101830.0,101820.0,0.32980979]
[1738020870465,0.35656686,101830.0,101820.0,0.237251]
[1738020870871,0.34700899,101830.0,101820.0,0.237251]
[1738020872065,0.15057699,101830.0,101820.0,0.69060979]
[1738020872583,0.34700899,101830.0,101820.0,0.598051]
[1738020873186,0.46429116,101830.0,101820.0,0.598051]
[1738020878385,0.46429116,101830.0,101820.0,0.60761604]
[1738020878988,0.46429116,101830.0,101820.0,0.24681604]
[1738020879884,0.26785916,101830.0,101820.0,0.70017483]
[1738020880278,0.46429116,101830.0,101820.0,0.70017483]
[1738020880479,0.46429116,101830.0,101820.0,2.20017483]
[1738020881388,0.26785916,101830.0,101820.0,2.20017483]
[1738020881583,0.26785916,101830.0,101820.0,2.29273362]
[1738020882178,0.26785916,101830.0,101820.0,2.20017483]
[1738020882389,0.26785916,101830.0,101820.0,2.29273362]
[1738020885594,0.26785916,101830.0,101820.0,0.79273362]
[1738020886086,0.26785916,101830.0,101820.0,2.29273362]
[1738020887183,0.004,101830.0,101820.0,2.70464319]
[1738020887381,0.003,101830.0,101820.0,2.70464319]
[1738020887590,0.11742918,101840.0,101830.0,0.196432]
[1738020887792,0.11742918,101840.0,101830.0,0.73269079]
[1738020888784,0.11842918,101840.0,101830.0,0.73269079]
[1738020889188,0.12142918,101840.0,101830.0,0.73269079]
[1738020891283,0.31784218,101840.0,101830.0,0.73269079]
[1738020891503,0.31784218,101840.0,101830.0,0.196432]
[1738020891989,0.31784218,101840.0,101830.0,0.28899079]
[1738020892194,0.12142918,101840.0,101830.0,0.28899079]
[1738020893186,0.12142918,101840.0,101830.0,0.64979079]
[1738020893888,0.12142918,101840.0,101830.0,0.28899079]
[1738020895190,0.12142918,101840.0,101830.0,0.64979079]
[1738020896689,0.12142918,101840.0,101830.0,0.73469079]
[1738020897597,0.12142918,101840.0,101830.0,2.23469079]
[1738020901702,0.12142918,101840.0,101830.0,2.27689079]
[1738020902388,0.12142918,101840.0,101830.0,0.77689079]
[1738020902998,0.12042918,101840.0,101830.0,2.27689079]
[1738020903904,0.12042918,101840.0,101830.0,2.36873079]
[1738020904900,0.32262544,101850.0,101840.0,0.28897179]
[1738020907597,0.89095056,101860.0,101850.0,0.196394]
[1738020908288,0.98350935,101860.0,101850.0,0.196394]
[1738020908894,0.89195056,101860.0,101850.0,0.196394]
[1738020909101,0.89395056,101860.0,101850.0,0.196394]
[1738020913302,0.3272457,101860.0,101850.0,0.28895279]
[1738020913903,0.3272457,101860.0,101850.0,1.78895279]
[1738020914304,0.32577245,101860.0,101850.0,2.14975279]
[1738020914807,0.149724,101860.0,101850.0,2.14975279]
[1738020916608,0.346099,101860.0,101850.0,2.14975279]
[1738020918007,0.19952201,101860.0,101850.0,2.14975279]
[1738020918608,0.00314701,101860.0,101850.0,2.14975279]
[1738020918909,0.14657699,101870.0,101860.0,0.196376]
[1738020919108,0.14657699,101870.0,101860.0,0.69303479]
[1738020919501,0.14657699,101870.0,101860.0,2.19303479]
[1738020921209,0.14957699,101870.0,101860.0,2.19303479]
[1738020921404,0.15157699,101870.0,101860.0,2.19303479]
[1738020921607,0.005,101870.0,101860.0,2.19303479]
[1738020922802,0.005,101870.0,101860.0,2.28479479]
[1738020923007,0.005,101870.0,101860.0,2.29445943]
[1738020924406,0.00014701,101880.0,101870.0,0.196357]
[1738020924708,0.00014701,101880.0,101870.0,0.82277458]
[1738020924909,1e-08,101880.0,101870.0,0.82277458]
[1738020925121,1e-08,101880.0,101870.0,2.32277458]
[1738020926010,0.00200001,101880.0,101870.0,2.32277458]
[1738020927607,0.00200001,101880.0,101870.0,2.49947477]
[1738020931113,0.00200001,101880.0,101870.0,2.32277458]
[1738020932713,0.00200001,101880.0,101870.0,2.41449458]
[1738020934515,0.00200001,101880.0,101870.0,2.32193579]
[1738020935215,0.00200001,101880.0,101870.0,2.41449458]
[1738020935825,0.00200001,101880.0,101870.0,2.32193579]
[1738020936625,0.00200001,101880.0,101870.0,2.41449458]
[1738020937227,0.0428,101890.0,101880.0,0.196337]
[1738020937423,0.13002207,101900.0,101890.0,0.196318]
[1738020937620,0.13002207,101900.0,101890.0,0.64967679]
[1738020938018,0.13002207,101900.0,101890.0,2.14967679]
[1738020938828,0.13002207,101900.0,101890.0,2.15067679]
[1738020939821,0.13002207,101900.0,101890.0,2.14967679]
[1738020940823,0.080498,101910.0,101890.0,1.95335879]
[1738020941131,0.080498,101910.0,101900.0,0.64965779]
[1738020941631,0.276777,101910.0,101900.0,0.64965779]
[1738020943027,0.080498,101910.0,101900.0,0.64965779]
[1738020944820,0.080498,101910.0,101900.0,2.14965779]
[1738020950626,9.8e-05,101910.0,101900.0,2.14965779]
[1738020950831,9.8e-05,101910.0,101900.0,2.28491658]
[1738020951432,9.8e-05,101910.0,101900.0,0.78491658]
[1738020951834,9.8e-05,101910.0,101900.0,2.28491658]
[1738020953942,9.8e-05,101910.0,101900.0,2.19235779]
[1738020954339,9.8e-05,101910.0,101900.0,2.36905798]
[1738020954840,0.0395,101920.0,101900.0,2.26531777]
[1738020955146,0.085,101930.0,101920.0,0.19626]
[1738020955342,0.085,101930.0,101920.0,0.64961879]
[1738020956838,0.042,101930.0,101920.0,0.64961879]
[1738020957545,0.003,101930.0,101920.0,2.19968179]
[1738020957734,0.003,101930.0,101920.0,2.23918179]
[1738020961240,0.003,101930.0,101920.0,2.24863819]
[1738020962646,0.003,101930.0,101920.0,0.74863819]
[1738020962842,0.003,101930.0,101920.0,0.92533838]
[1738020963038,0.003,101930.0,101920.0,2.42533838]
[1738020964250,0.0793,101940.0,101930.0,0.196241]
[1738020964448,0.0793,101940.0,101930.0,0.64959979]
[1738020965540,0.0793,101940.0,101930.0,0.74215858]
[1738020965848,0.0435,101950.0,101940.0,0.196222]
[1738020966044,0.0435,101950.0,101940.0,0.74213958]
[1738020967242,0.0435,101950.0,101940.0,0.64958079]
[1738020969048,0.242702,101950.0,101940.0,0.28978079]
[1738020969552,0.69606079,101950.0,101940.0,0.001]
[1738020969949,0.242702,101950.0,101940.0,0.001]
[1738020970256,0.603502,101950.0,101940.0,0.00083955]
[1738020972158,0.603502,101950.0,101940.0,0.19706155]
[1738020974365,0.4073,101950.0,101940.0,0.38217913]
[1738020974653,0.4073,101950.0,101940.0,0.65042034]
[1738020974654,0.0465,101950.0,101940.0,0.65042034]
[1738020974959,0.0465,101950.0,101940.0,0.74297913]
[1738020975548,0.0465,101950.0,101940.0,2.15042034]
[1738020978953,0.003,101950.0,101940.0,2.24297913]
[1738020979156,0.003,101950.0,101940.0,2.15042034]
[1738020980353,0.003,101950.0,101940.0,1.78962034]
[1738020980759,0.003,101950.0,101940.0,1.79915849]
[1738020983066,0.26680332,101950.0,101940.0,1.79915849]
[1738020984371,0.26680332,101950.0,101940.0,2.15995849]
[1738020985866,0.26680332,101950.0,101940.0,2.25251728]
[1738020986059,0.26680332,101950.0,101940.0,2.15995849]
[1738020986854,0.26680332,101950.0,101940.0,2.25251728]
[1738020987064,0.14957699,101950.0,101940.0,2.29191728]
[1738020987257,0.14957699,101950.0,101940.0,2.19935849]
[1738020987458,0.14957699,101950.0,101940.0,2.29191728]
[1738020987661,0.14957699,101950.0,101940.0,0.79191728]
[1738020988270,0.17604845,101960.0,101950.0,0.196202]
[1738020988461,0.17604845,101960.0,101950.0,0.82266079]
[1738020991464,0.17604845,101960.0,101950.0,0.74096079]
[1738020991668,0.25854845,101960.0,101950.0,0.74096079]
[1738020991866,0.45473145,101960.0,101950.0,0.38016079]
[1738020992072,0.20006475,101960.0,101950.0,0.55686098]
[1738020992363,0.20006475,101960.0,101950.0,0.46546098]
[1738020992569,0.84960654,101960.0,101950.0,0.17670019]
[1738020992764,0.99562354,101960.0,101940.0,0.23520938]
[1738020992967,0.64956079,101950.0,101940.0,0.23520938]
[1738020993369,0.94956079,101950.0,101940.0,0.23520938]
[1738020994176,0.557002,101950.0,101940.0,0.52399017]
[1738020994569,0.196202,101950.0,101940.0,0.52499017]
[1738020994769,0.557002,101950.0,101940.0,0.52599017]
[1738020995173,0.3608,101950.0,101940.0,0.52599017]
[1738020995883,0.79925175,101960.0,101940.0,0.32976817]
[1738020996076,0.79925175,101960.0,101950.0,0.28876079]
[1738020996385,0.4855,101960.0,101950.0,0.28876079]
[1738020996869,0.681683,101960.0,101950.0,0.28876079]
[1738020997065,0.681683,101960.0,101950.0,0.196202]
[1738020997681,0.4855,101960.0,101940.0,0.001]
[1738020997884,0.64957079,101950.0,101940.0,0.197211]
[1738020998179,0.64957079,101950.0,101940.0,0.001]
[1738020998382,0.557012,101950.0,101940.0,0.001]
[1738020998675,0.196222,101940.0,101930.0,1.69637601]
[1738020998869,0.557022,101940.0,101930.0,1.69637601]
[1738020999776,0.556022,101940.0,101930.0,1.69637601]
[1738021000785,0.64858079,101940.0,101930.0,0.00014701]
[1738021001181,0.555022,101940.0,101930.0,0.19838801]
[1738021001790,0.555022,101940.0,101930.0,0.2909468]
[1738021002090,0.555022,101940.0,101930.0,0.2929468]
[1738021002591,0.194222,101940.0,101930.0,0.2929468]
[1738021003091,0.37228134,101950.0,101940.0,0.196207]
[1738021003393,0.37228134,101950.0,101940.0,0.28876579]
[1738021003686,0.73308134,101950.0,101940.0,1.78876579]
[1738021004085,0.37228134,101950.0,101940.0,1.78876579]
[1738021004591,0.37228134,101950.0,101940.0,1.78976579]
[1738021004791,0.37228134,101950.0,101940.0,1.79076579]
[1738021005292,0.17607334,101950.0,101940.0,1.88332458]
[1738021005678,0.17607334,101950.0,101940.0,1.82946579]
[1738021006878,0.17607334,101950.0,101940.0,2.23236579]
[1738021007085,0.11733833,101950.0,101940.0,1.87156579]
[1738021007279,0.11733833,101950.0,101940.0,1.97363334]
[1738021007485,0.11733833,101950.0,101940.0,2.37393334]
[1738021008094,0.11733833,101950.0,101940.0,2.28137455]
[1738021008388,0.11733833,101950.0,101940.0,2.37393334]
[1738021009491,0.11733833,101950.0,101940.0,2.28137455]
[1738021010183,0.43412133,101960.0,101950.0,0.196202]
[1738021010789,0.43412133,101960.0,101950.0,0.28876079]
[1738021012387,0.43412133,101960.0,101950.0,0.196202]
[1738021012694,0.43512133,101960.0,101950.0,0.196202]
[1738021014184,0.43512133,101960.0,101950.0,0.28876079]
[1738021014391,1e-06,101960.0,101950.0,0.64956079]
[1738021014788,1e-06,101960.0,101950.0,2.14956079]
[1738021021395,0.11722683,101980.0,101970.0,0.196164]
[1738021021693,0.11722683,101980.0,101970.0,0.74208158]
[1738021021893,0.11722683,101980.0,101970.0,0.78148158]
[1738021022098,0.27607334,102000.0,101970.0,2.54419258]
[1738021022304,0.27607334,102000.0,101990.0,0.28868479]
[1738021023395,0.63687334,102000.0,101990.0,0.28868479]
[1738021024095,0.63687334,102000.0,101990.0,0.65048479]
[1738021024096,0.27807334,102000.0,101990.0,0.65048479]
[1738021024789,0.27607334,102000.0,101990.0,0.65048479]
[1738021024999,0.27707334,102000.0,101990.0,0.74304358]
[1738021025189,0.27707334,102000.0,101990.0,0.83424358]
[1738021026197,0.27707334,102000.0,101990.0,0.83324358]
[1738021026497,0.20320029,102020.0,102010.0,0.196087]
[1738021026796,0.20320029,102020.0,102010.0,0.64944579]
[1738021027000,0.20320029,102020.0,102010.0,0.72754579]
[1738021027197,0.04177103,102030.0,102010.0,2.03145879]
[1738021027397,0.14622544,102020.0,102010.0,2.184008]
[1738021027700,0.14922544,102020.0,102010.0,2.184008]
[1738021028391,0.14622544,102020.0,102010.0,2.184008]
[1738021028891,0.14622544,102020.0,102010.0,2.27656679]
[1738021029288,0.14622544,102020.0,102010.0,2.27756679]
[1738021029892,0.34229344,102020.0,102010.0,0.196087]
[1738021030099,0.34229344,102020.0,102000.0,0.2888038]
[1738021030100,0.196087,102010.0,102000.0,0.2888038]
[1738021030295,0.277387,102010.0,102000.0,0.2888038]
[1738021030800,0.0813,102010.0,102000.0,0.2888038]
[1738021032192,0.0813,102010.0,102000.0,0.2908038]
[1738021032399,0.638187,102010.0,102000.0,0.19824501]
[1738021032600,0.638187,102010.0,102000.0,0.2908038]
[1738021032796,0.638187,102010.0,102000.0,0.19824501]
[1738021033000,0.638187,102010.0,102000.0,0.2908038]
[1738021033201,0.638187,102010.0,102000.0,0.19824501]
[1738021033501,0.638187,102010.0,102000.0,0.19924501]
[1738021033799,0.638187,102010.0,102000.0,0.2918038]
[1738021034798,0.4421,102010.0,102000.0,0.2918038]
[1738021034987,0.638187,102010.0,102000.0,0.19924501]
[1738021038502,0.638187,102010.0,102000.0,0.2918038]
[1738021039101,0.638187,102010.0,102000.0,0.19924501]
[1738021039908,0.638187,102010.0,102000.0,1.69924501]
[1738021040106,0.680387,102010.0,102000.0,1.69924501]
[1738021040697,0.77294579,102010.0,102000.0,1.50314701]
[1738021041198,0.680387,102010.0,102000.0,1.50314701]
[1738021041903,0.680387,102010.0,102000.0,0.00314701]
[1738021042302,0.77294579,102010.0,102000.0,0.00314701]
[1738021049214,0.94885065,102010.0,102000.0,0.00314701]
[1738021054313,0.85629186,102010.0,102000.0,0.00314701]
[1738021054616,0.85629186,102010.0,102000.0,0.19925301]
[1738021056116,0.680387,102010.0,102000.0,0.19925301]
[1738021058409,0.556887,102010.0,102000.0,0.2918118]
[1738021058608,0.556887,102010.0,102000.0,0.4134118]
[1738021059714,0.196087,102010.0,102000.0,0.4134118]
[1738021060016,0.556887,102010.0,102000.0,0.4134118]
[1738021060417,0.40905001,102020.0,102010.0,0.196087]
[1738021060612,0.40905001,102020.0,102010.0,0.28864579]
[1738021060913,0.39927629,102020.0,102010.0,0.28864579]
[1738021061914,0.20320029,102020.0,102010.0,0.28864579]
[1738021062114,0.20320029,102020.0,102010.0,0.64944579]
[1738021062308,0.20320029,102020.0,102010.0,0.65304579]
[1738021062511,0.23105375,102030.0,102010.0,0.45695879]
[1738021062707,0.23105375,102030.0,102020.0,0.72752679]
[1738021062913,0.22958272,102030.0,102020.0,0.72752679]
[1738021063313,0.90790072,102050.0,102040.0,0.196029]
[1738021063620,0.91781559,102050.0,102040.0,0.196029]
[1738021064208,0.60029759,102050.0,102030.0,0.1320058]
[1738021064407,0.79632059,102050.0,102040.0,0.196029]